bitfinex/quotes_ETHUSD_20250602
["timestamp","ask_amount","ask_price","bid_price","bid_amount"]
[1748836151192,0.38101507,2497.3,2497.1,0.8091]
[1748836151402,0.38101139,2497.2,2497.1,0.8091]
[1748836151604,2.7837024,2497.2,2497.1,0.01]
[1748836152086,0.38101139,2497.2,2497.1,0.01]
[1748836153097,0.55,2497.4,2497.1,0.01]
[1748836153300,0.38070409,2497.3,2497.2,3.16159101]
[1748836153498,2.40222817,2497.7,2497.2,3.47875011]
[1748836153661,0.38068853,2497.6,2497.2,3.47875011]
[1748836153996,0.38068853,2497.5,2497.2,1.0760591]
[1748836154196,0.38068853,2497.4,2497.2,1.0760591]
[1748836154396,2.40230717,2497.6,2497.2,0.7589]
[1748836154578,0.38068732,2497.5,2497.2,0.7589]
[1748836154778,0.38068732,2497.4,2497.2,0.7589]
[1748836155087,2.40245467,2497.5,2497.2,0.7589]
[1748836155400,13.97366447,2497.7,2497.2,0.7589]
[1748836155401,2.78315921,2497.4,2497.2,0.7589]
[1748836155600,2.40244287,2497.5,2497.2,0.7589]
[1748836155920,0.38057648,2497.4,2497.2,0.7589]
[1748836156069,2.40244287,2497.5,2497.2,0.7589]
[1748836156267,0.38056529,2497.4,2497.2,0.7589]
[1748836156469,2.40244287,2497.5,2497.2,0.7589]
[1748836156775,0.38056334,2497.4,2497.2,0.7589]
[1748836156998,8.0,2497.7,2497.2,1.07606803]
[1748836157207,2.78290149,2497.6,2497.2,0.7589]
[1748836157507,0.38057918,2497.5,2497.2,0.7589]
[1748836157666,0.38057918,2497.4,2497.2,3.16158534]
[1748836157871,10.40224325,2497.7,2497.2,3.16158534]
[1748836158090,0.3805603,2497.6,2497.2,3.16158534]
[1748836158298,0.3805603,2497.5,2497.2,3.16158534]
[1748836158574,0.38059013,2497.4,2497.2,0.7589]
[1748836158796,2.40246675,2497.5,2497.2,0.7589]
[1748836159097,0.38056749,2497.4,2497.2,0.7589]
[1748836159302,2.40246675,2497.5,2497.2,0.7589]
[1748836159504,0.38057261,2497.4,2497.2,0.7589]
[1748836159686,2.40246675,2497.5,2497.2,0.7589]
[1748836159864,0.38054811,2497.4,2497.2,0.7589]
[1748836160069,2.40250502,2497.4,2497.2,0.7589]
[1748836160368,3.36613662,2497.5,2497.1,0.01]
[1748836160703,0.38056994,2497.4,2497.1,0.01]
[1748836161011,2.40269101,2497.2,2497.1,0.01]
[1748836162179,3.74719101,2497.2,2497.1,0.01]
[1748836162502,12.12760744,2497.2,2497.1,0.01]
[1748836164602,10.78279893,2497.2,2497.1,0.01]
[1748836164821,0.55,2497.4,2497.1,0.8336]
[1748836165116,2.78263692,2497.3,2497.1,0.8336]
[1748836165325,10.95250714,2497.4,2497.1,0.8336]
[1748836165607,0.38003294,2497.3,2497.1,0.8336]
[1748836165812,2.40250714,2497.4,2497.1,0.8336]
[1748836165980,0.38000826,2497.3,2497.1,0.8336]
[1748836166316,2.40250714,2497.4,2497.1,0.8336]
[1748836166513,0.38006462,2497.3,2497.1,0.8336]
[1748836166679,2.402612,2497.3,2497.1,0.01]
[1748836166876,2.40269101,2497.2,2497.1,0.01]
[1748836167109,2.95269101,2497.2,2497.1,0.01]
[1748836167296,2.78275338,2497.2,2497.1,0.01]
[1748836168125,3.33275338,2497.2,2497.1,0.01]
[1748836168309,11.33275338,2497.2,2497.1,0.01]
[1748836168485,11.62347977,2497.2,2497.1,0.01]
[1748836168799,10.95269101,2497.2,2497.1,0.01]
[1748836168982,11.33265005,2497.2,2497.1,0.01]
[1748836170426,12.09415005,2497.2,2497.1,0.01]
[1748836173220,12.09403655,2497.2,2497.1,0.01]
[1748836175099,12.5041145,2497.2,2497.1,0.01]
[1748836177603,12.50428058,2497.2,2497.1,0.01]
[1748836177802,17.13431135,2497.2,2497.1,0.01]
[1748836179204,12.97931135,2497.2,2497.1,0.01]
[1748836179537,10.78270263,2497.2,2497.1,0.01]
[1748836179839,15.48770263,2497.2,2497.1,0.01]
[1748836181231,11.33270263,2497.2,2497.1,0.01]
[1748836182130,11.33287551,2497.2,2497.1,0.01]
[1748836182311,15.48787551,2497.2,2497.1,0.01]
[1748836182740,11.33287551,2497.2,2497.1,0.01]
[1748836186552,11.33317391,2497.2,2497.1,0.01]
[1748836187760,15.48817391,2497.2,2497.1,0.01]
[1748836190760,15.96377754,2497.2,2497.1,0.01]
[1748836190962,15.96473725,2497.2,2497.1,0.01]
[1748836191471,8.85704624,2497.2,2497.1,0.01]
[1748836191674,0.38090944,2497.2,2497.1,0.836]
[1748836195270,0.38085606,2497.2,2497.1,0.836]
[1748836198386,0.38085606,2497.2,2497.1,1.15989728]
[1748836201995,0.38085606,2497.2,2497.1,0.836]
[1748836202356,0.38085606,2497.2,2497.1,0.01]
[1748836202357,14.14968369,2497.2,2497.1,0.01]
[1748836202551,14.14960046,2497.2,2497.1,0.01]
[1748836203093,14.94740046,2497.2,2497.1,0.01]
[1748836203251,15.4233665,2497.2,2497.1,0.01]
[1748836203681,14.94740046,2497.2,2497.1,0.01]
[1748836206767,14.94702998,2497.2,2497.1,0.01]
[1748836207517,17.35102998,2497.2,2497.1,0.01]
[1748836208003,17.74966209,2497.2,2497.1,0.01]
[1748836208405,18.38348774,2497.2,2497.1,0.01]
[1748836208789,17.74966209,2497.2,2497.1,0.01]
[1748836209168,20.56579871,2497.2,2497.1,0.01]
[1748836209892,17.74966209,2497.2,2497.1,0.01]
[1748836210093,20.56579871,2497.2,2497.1,0.01]
[1748836210905,17.74966209,2497.2,2497.1,0.01]
[1748836211067,19.58221391,2497.2,2497.1,0.01]
[1748836211272,19.58194402,2497.2,2497.1,0.01]
[1748836212070,20.13194402,2497.2,2497.1,0.01]
[1748836212788,19.4983922,2497.2,2497.1,0.01]
[1748836213198,20.13178638,2497.2,2497.1,0.01]
[1748836214705,15.97878638,2497.2,2497.1,0.01]
[1748836214896,19.4983922,2497.2,2497.1,0.01]
[1748836215091,20.13178638,2497.2,2497.1,0.01]
[1748836215506,19.75165392,2497.2,2497.1,0.01]
[1748836215703,20.13175101,2497.2,2497.1,0.01]
[1748836216295,20.13189132,2497.2,2497.1,0.01]
[1748836217309,19.49849714,2497.2,2497.1,0.01]
[1748836218830,21.90249714,2497.2,2497.1,0.01]
[1748836218979,19.49849714,2497.2,2497.1,0.01]
[1748836220108,20.13176917,2497.2,2497.1,0.01]
[1748836222311,17.31563255,2497.2,2497.1,0.01]
[1748836222510,20.13176917,2497.2,2497.1,0.01]
[1748836224524,20.13191574,2497.2,2497.1,0.01]
[1748836225209,13.16277912,2497.2,2497.1,0.01]
[1748836225411,20.13191574,2497.2,2497.1,0.01]
[1748836227634,20.13292239,2497.2,2497.1,0.01]
[1748836228552,19.49852156,2497.2,2497.1,0.01]
[1748836228753,21.90252156,2497.2,2497.1,0.01]
[1748836229053,21.90303601,2497.2,2497.1,0.01]
[1748836229956,28.92817263,2497.2,2497.1,0.01]
[1748836230116,2.40365355,2496.2,2496.1,0.01]
[1748836230312,2.40359107,2496.3,2496.1,0.01]
[1748836230614,2.40365355,2496.2,2496.1,0.7623]
[1748836230927,2.78489168,2496.2,2496.1,0.7623]
[1748836231129,0.38123813,2496.2,2496.1,0.7623]
[1748836231929,2.78489168,2496.2,2496.1,0.7623]
[1748836232154,0.38123813,2496.2,2496.1,0.7623]
[1748836233558,0.38152376,2496.2,2496.1,0.7623]
[1748836237668,10.40356628,2496.3,2496.1,0.7623]
[1748836237870,0.38147435,2496.2,2496.1,0.7623]
[1748836238163,0.38147435,2496.2,2496.1,3.48267185]
[1748836238464,0.47684294,2496.7,2496.3,2.40346922]
[1748836238666,0.38148011,2496.6,2496.3,0.7825]
[1748836238840,0.38148011,2496.5,2496.3,0.7825]
[1748836239050,10.40311594,2496.8,2496.3,0.7825]
[1748836239370,0.38149952,2496.7,2496.3,3.18600554]
[1748836239568,0.38149952,2496.6,2496.4,0.7825]
[1748836239776,0.38149952,2496.5,2496.4,0.7825]
[1748836241740,2.40355726,2496.3,2496.2,0.7664]
[1748836242038,2.78536105,2496.3,2496.2,0.7664]
[1748836242630,2.78536105,2496.3,2496.1,0.01]
[1748836242836,0.38180379,2496.2,2496.1,0.01]
[1748836246485,7.10449891,2496.4,2496.1,0.01]
[1748836246781,0.38183576,2496.3,2496.1,0.01]
[1748836246982,0.38183576,2496.2,2496.1,0.01]
[1748836247778,2.78548931,2496.2,2496.1,0.01]
[1748836249459,10.78548931,2496.2,2496.1,0.01]
[1748836249986,8.38183576,2496.2,2496.1,0.01]
[1748836250696,10.78548931,2496.2,2496.1,0.01]
[1748836250862,10.78506589,2496.2,2496.1,0.01]
[1748836251571,8.38141234,2496.2,2496.1,0.01]
[1748836251778,0.38141234,2496.2,2496.1,0.796]
[1748836251958,0.38141234,2496.2,2496.1,3.51974344]
[1748836252595,8.0,2496.5,2496.1,3.51974344]
[1748836252804,0.38145714,2496.4,2496.1,0.796]
[1748836252975,0.38145714,2496.3,2496.1,0.796]
[1748836253175,0.38145714,2496.2,2496.1,0.796]
[1748836254902,0.38145714,2496.2,2496.1,3.19974984]
[1748836255062,0.38154481,2496.2,2496.1,3.19974984]
[1748836255272,2.81613662,2496.7,2496.1,3.19974984]
[1748836255273,2.88012802,2496.8,2496.3,0.8216]
[1748836255465,6.93477314,2496.7,2496.3,0.8216]
[1748836255693,0.38159787,2496.6,2496.3,0.8216]
[1748836255906,2.40365355,2496.2,2496.1,0.831]
[1748836256063,3.59223662,2496.5,2496.1,0.831]
[1748836256268,4.53155098,2496.4,2496.1,0.831]
[1748836256591,0.38155098,2496.3,2496.1,0.831]
[1748836256903,6.55342512,2496.5,2496.1,0.831]
[1748836257104,0.38155879,2496.4,2496.1,0.831]
[1748836257268,0.38155879,2496.3,2496.1,0.831]
[1748836257468,6.55342512,2496.5,2496.1,0.831]
[1748836257713,0.38158292,2496.4,2496.1,0.831]
[1748836257904,0.38158292,2496.3,2496.1,0.831]
[1748836258067,6.55342512,2496.5,2496.1,0.831]
[1748836258268,0.38162235,2496.4,2496.1,0.831]
[1748836258467,0.38162235,2496.3,2496.1,0.831]
[1748836258681,6.55342512,2496.5,2496.1,0.831]
[1748836258883,0.38168038,2496.4,2496.1,0.831]
[1748836259201,0.38168038,2496.3,2496.1,0.831]
[1748836259405,6.55342512,2496.5,2496.1,0.831]
[1748836259589,2.78523047,2496.4,2496.1,0.831]
[1748836259772,3.33533325,2496.3,2496.1,0.01]
[1748836259972,2.95358894,2496.3,2496.1,0.01]
[1748836260593,0.38170633,2496.2,2496.1,0.01]
[1748836262520,2.95358894,2496.3,2496.1,0.01]
[1748836262809,0.38172951,2496.2,2496.1,0.01]
[1748836263018,2.78538306,2496.2,2496.1,0.01]
[1748836265085,0.38172951,2496.2,2496.1,0.01]
[1748836265488,2.78538306,2496.2,2496.1,0.01]
[1748836265685,10.78538306,2496.2,2496.1,0.01]
[1748836266481,12.12348306,2496.2,2496.1,0.01]
[1748836266682,12.60064495,2496.2,2496.1,0.01]
[1748836266916,12.60042031,2496.2,2496.1,0.01]
[1748836268594,14.93951984,2496.2,2496.1,0.01]
[1748836268917,1.3448,2495.9,2495.1,0.01]
[1748836269141,10.40447722,2495.4,2495.1,0.01]
[1748836269294,2.78616997,2495.3,2495.1,0.01]
[1748836269501,2.4045403,2495.3,2495.1,0.01]
[1748836269734,10.40446775,2495.4,2495.1,0.01]
[1748836269939,0.38127491,2495.3,2495.1,0.01]
[1748836270149,12.149,2495.7,2495.2,0.7608]
[1748836270315,8.0,2495.5,2495.2,0.7608]
[1748836270653,10.40433251,2495.5,2495.2,0.7608]
[1748836271908,8.0,2495.5,2495.2,0.7608]
[1748836272121,0.55,2495.6,2495.2,0.7608]
[1748836272325,13.22056316,2495.4,2495.2,0.7608]
[1748836272500,10.81613662,2495.4,2495.2,0.7608]
[1748836272715,2.40436738,2495.5,2495.2,0.7608]
[1748836272927,10.40436738,2495.5,2495.2,0.7608]
[1748836273128,8.0,2495.5,2495.2,0.7608]
[1748836273328,4.149,2495.6,2495.2,0.7608]
[1748836273631,8.0,2495.5,2495.2,3.16541484]
[1748836273834,8.0,2495.7,2495.2,0.7608]
[1748836274127,0.38086522,2495.6,2495.2,3.16539632]
[1748836274335,10.40415489,2495.7,2495.2,0.7608]
[1748836274536,9.36919508,2495.8,2495.2,3.16540459]
[1748836274734,0.38082667,2495.7,2495.2,3.16540459]
[1748836274903,6.96513662,2495.8,2495.3,2.40451572]
[1748836275237,0.38080277,2495.7,2495.3,2.40451572]
[1748836275431,6.96513662,2495.8,2495.3,2.40451572]
[1748836275741,9.36919108,2495.8,2495.2,3.72340065]
[1748836276098,0.38077817,2495.7,2495.2,3.72340065]
[1748836276327,9.36919108,2495.8,2495.2,3.72340065]
[1748836276529,9.36919108,2495.8,2495.3,2.4045136]
[1748836276735,8.0,2496.0,2495.5,0.7999]
[1748836276956,0.380769,2495.9,2495.5,0.7999]
[1748836277104,2.81613662,2496.1,2495.6,2.40416824]
[1748836277300,0.38077846,2496.0,2495.6,2.40416824]
[1748836277642,2.81613662,2496.1,2495.6,2.92159495]
[1748836277935,0.38081905,2496.0,2495.6,2.92159495]
[1748836278137,5.21988809,2496.1,2495.6,2.92159495]
[1748836278305,0.38083896,2496.0,2495.6,2.92159495]
[1748836278507,5.21988809,2496.1,2495.6,2.92159495]
[1748836278756,0.38086794,2496.0,2495.6,2.92159495]
[1748836278938,5.21988809,2496.1,2495.6,0.51742671]
[1748836279137,0.38084468,2496.0,2495.6,0.51742671]
[1748836279322,5.21988809,2496.1,2495.6,0.51742671]
[1748836279621,0.38083395,2496.0,2495.6,0.51742671]
[1748836279945,2.81613662,2496.1,2495.6,2.92160309]
[1748836280127,0.38085224,2496.0,2495.6,2.92160309]
[1748836280444,5.21994345,2496.1,2495.6,0.51742671]
[1748836280735,0.38082861,2496.0,2495.6,0.51742671]
[1748836280920,10.4036964,2496.2,2495.7,3.60316935]
[1748836281126,8.38092495,2496.1,2495.7,3.60316935]
[1748836281432,8.0,2496.1,2495.7,1.1990618]
[1748836281638,13.21989591,2496.1,2495.7,0.8269]
[1748836283541,0.38094768,2496.0,2495.7,0.8269]
[1748836283706,13.21989591,2496.1,2495.7,0.8269]
[1748836283905,0.38089809,2496.0,2495.7,0.8269]
[1748836284120,2.4038477,2496.0,2495.7,0.8269]
[1748836284542,13.21992941,2496.1,2495.7,0.8269]
[1748836284744,0.38091476,2496.0,2495.7,0.8269]
[1748836284930,2.40389931,2496.0,2495.7,0.8269]
[1748836285330,2.81613662,2495.9,2495.7,0.8269]
[1748836285860,5.22013403,2495.9,2495.7,0.8269]
[1748836286733,5.22015076,2495.9,2495.7,0.8269]
[1748836286936,2.81613662,2495.9,2495.7,0.8269]
[1748836287157,5.22008418,2495.9,2495.7,0.8269]
[1748836287358,2.40403878,2495.8,2495.5,0.8139]
[1748836287521,2.81613662,2495.7,2495.5,0.8139]
[1748836289060,5.22028041,2495.7,2495.5,0.8139]
[1748836289739,2.81613662,2495.7,2495.5,0.8139]
[1748836291138,2.81613662,2495.7,2495.3,0.7509]
[1748836291661,0.38189777,2495.6,2495.3,0.7509]
[1748836291838,5.22030901,2495.7,2495.3,0.7509]
[1748836292161,5.22031921,2495.7,2495.3,0.7509]
[1748836292749,0.3817364,2495.6,2495.3,0.7509]
[1748836292950,5.22031921,2495.7,2495.3,0.7509]
[1748836293662,0.38177797,2495.6,2495.3,0.7509]
[1748836293961,2.81613662,2495.7,2495.3,0.7509]
[1748836294255,2.81613662,2496.0,2495.4,0.7796]
[1748836294460,0.38177389,2495.9,2495.5,2.40426504]
[1748836294656,0.38177389,2495.8,2495.5,2.40426504]
[1748836294954,5.21999491,2496.0,2495.5,2.40426504]
[1748836295161,0.38178247,2495.9,2495.5,2.40426504]
[1748836295327,12.62416372,2496.1,2495.4,0.7796]
[1748836295328,11.19791909,2495.8,2495.4,0.7796]
[1748836295523,2.78593009,2495.7,2495.4,0.7796]
[1748836295766,2.40414762,2495.7,2495.4,0.7796]
[1748836295947,13.22022325,2495.8,2495.4,0.7796]
[1748836296148,0.38169629,2495.7,2495.4,0.7796]
[1748836296352,2.40395581,2495.9,2495.5,2.40425109]
[1748836296353,8.0,2495.9,2495.5,2.40425109]
[1748836296554,0.38153141,2495.8,2495.5,2.40425109]
[1748836296730,0.38153141,2495.7,2495.5,2.40425109]
[1748836297059,8.0,2495.9,2495.5,2.40425109]
[1748836297229,0.38153503,2495.8,2495.5,2.40431386]
[1748836297430,0.38153503,2495.7,2495.5,2.40431386]
[1748836297630,8.0,2495.9,2495.5,0.55883397]
[1748836297830,0.38132864,2495.8,2495.5,0.55883397]
[1748836298054,8.0,2495.9,2495.6,2.40422126]
[1748836298250,0.38124291,2495.8,2495.7,0.8154]
[1748836298459,2.81613662,2496.1,2495.7,3.21953511]
[1748836298653,0.38125933,2496.0,2495.7,3.21953511]
[1748836298965,2.81613662,2496.1,2495.8,2.40399227]
[1748836299173,0.38125326,2496.0,2495.7,3.21952124]
[1748836299378,10.81613662,2496.3,2495.8,2.40399055]
[1748836299544,0.38123994,2496.2,2495.8,2.40399055]
[1748836299744,0.38123994,2496.1,2495.7,0.8154]
[1748836299985,10.81613662,2496.3,2495.8,0.8154]
[1748836300311,0.38134928,2496.2,2496.1,0.8154]
[1748836300485,0.38134928,2496.2,2496.1,3.78145975]
[1748836300639,2.81613662,2496.8,2496.4,0.8154]
[1748836300841,0.38135158,2496.7,2496.4,0.8154]
[1748836301045,2.81613662,2496.8,2496.4,0.8154]
[1748836301268,0.38138352,2496.7,2496.4,0.8154]
[1748836301454,5.21921581,2496.8,2496.4,0.8154]
[1748836301649,2.81613662,2496.6,2496.4,0.8154]
[1748836305370,5.21941626,2496.6,2496.4,0.8154]
[1748836305550,2.81613662,2496.6,2496.4,0.8154]
[1748836307302,5.21946193,2496.6,2496.0,3.16776398]
[1748836307622,5.21942149,2496.6,2496.1,2.40374555]
[1748836308382,2.81613662,2496.6,2496.1,2.40374555]
[1748836308582,2.81613662,2496.6,2496.2,2.40364562]
[1748836309009,2.81613662,2496.6,2496.2,2.40361195]
[1748836309514,2.81613662,2496.6,2496.1,2.4037048]
[1748836309714,2.81613662,2496.6,2496.1,3.37555696]
[1748836310414,2.81613662,2496.6,2496.2,2.40360171]
[1748836310711,2.81613662,2496.6,2496.1,3.37554057]
[1748836311996,8.0,2496.8,2496.4,2.40343328]
[1748836312183,8.0,2496.8,2496.5,0.7693]
[1748836312577,0.47599223,2497.3,2496.5,0.7693]
[1748836312578,1.26179223,2497.3,2496.6,0.31727333]
[1748836312779,3.18464087,2497.6,2496.8,0.8177]
[1748836312980,2.78250282,2497.5,2496.9,2.40292652]
[1748836313218,2.4026475,2497.3,2496.8,0.8177]
[1748836313516,5.2186672,2497.4,2496.8,3.22070989]
[1748836313716,5.21864332,2497.4,2496.9,2.40292029]
[1748836314125,5.21864332,2497.4,2496.8,3.81484064]
[1748836314329,5.21864332,2497.4,2496.8,1.41180881]
[1748836315115,8.0,2497.5,2496.8,1.41180881]
[1748836315342,8.0,2497.5,2497.2,0.8249]
[1748836315715,2.81613662,2497.4,2496.9,3.22785799]
[1748836316316,2.40260103,2497.3,2496.9,0.8249]
[1748836316631,5.21866421,2497.4,2496.9,3.22787249]
[1748836316820,5.21866421,2497.4,2496.9,0.8249]
[1748836319219,5.21864411,2497.4,2496.9,0.8249]
[1748836319421,2.4025948,2497.3,2496.9,0.8249]
[1748836321818,2.40269154,2497.2,2496.9,0.8249]
[1748836322919,2.40303687,2496.9,2496.6,0.7507]
[1748836323104,2.81613662,2496.8,2496.5,1.093]
[1748836323446,2.4032334,2496.7,2496.4,0.7507]
[1748836323634,5.21928336,2496.8,2496.4,0.7507]
[1748836323804,2.81613662,2496.8,2496.4,0.7507]
[1748836324010,2.40307836,2496.8,2496.4,1.06612567]
[1748836324307,2.40307836,2496.8,2496.4,0.7507]
[1748836325847,10.4030042,2496.9,2496.4,3.15416077]
[1748836326002,10.4030042,2496.9,2496.4,0.7507]
[1748836326206,2.40307917,2496.8,2496.4,0.7507]
[1748836326406,5.21921579,2496.8,2496.4,0.7507]
[1748836327109,2.40320391,2496.7,2496.4,0.7507]
[1748836327536,2.40354335,2496.4,2495.9,1.8887]
[1748836327854,5.21967997,2496.4,2495.9,1.8887]
[1748836328848,5.21967997,2496.4,2495.9,4.29263823]
[1748836330479,2.40360989,2496.3,2495.9,0.7957]
[1748836330643,2.81613662,2496.2,2495.9,0.7957]
[1748836330982,2.40378271,2496.1,2495.7,1.8887]
[1748836332656,2.40378271,2496.1,2495.7,1.093]
[1748836334458,5.98203903,2496.2,2495.7,1.093]
[1748836334638,2.40381947,2496.1,2495.7,1.093]
[1748836335080,2.81613662,2496.0,2495.7,1.093]
[1748836336179,5.22000979,2496.0,2495.7,1.093]
[1748836336586,2.81613662,2496.0,2495.7,1.093]
[1748836339703,0.7983,2496.4,2495.8,0.04006623]
[1748836339992,9.1783747,2496.7,2496.2,0.7705]
[1748836340149,0.47511341,2497.0,2496.2,3.17408371]
[1748836340150,3.20135227,2496.9,2496.2,3.17408371]
[1748836340347,3.58147283,2496.9,2496.2,3.17414666]
[1748836340584,5.21921371,2496.8,2496.3,2.4035015]
[1748836340750,2.40319165,2496.7,2496.2,0.7705]
[1748836340945,2.81613662,2496.6,2496.2,0.7705]
[1748836341175,2.81613662,2496.6,2496.2,3.17414425]
[1748836343499,3.36613662,2496.8,2496.4,2.40345922]
[1748836343657,2.81613662,2496.8,2496.5,2.40335563]
[1748836343852,0.38052675,2496.9,2496.5,2.40335563]
[1748836344629,0.38052675,2496.9,2496.4,2.40340075]
[1748836344926,2.78350794,2496.9,2496.4,2.40340075]
[1748836345093,2.81613662,2496.8,2496.3,2.40351264]
[1748836345286,2.81613662,2496.8,2496.3,3.01705561]
[1748836345796,2.81613662,2496.8,2496.3,0.61354297]
[1748836346019,2.40322256,2496.7,2496.2,3.17409953]
[1748836346529,5.59980444,2496.8,2496.2,3.17409953]
[1748836346831,5.21925179,2496.8,2496.2,3.17409953]
[1748836347005,5.59995864,2496.8,2496.2,3.17409953]
[1748836347405,5.59995864,2496.8,2496.2,4.14598783]
[1748836347604,5.21925179,2496.8,2496.2,4.14598783]
[1748836348018,2.40317276,2496.7,2496.2,4.14598783]
[1748836348219,3.20447276,2496.7,2496.2,4.14598783]
[1748836350892,3.20447276,2496.7,2496.2,0.9718883]
[1748836351095,8.7516,2496.6,2496.2,0.9718883]
[1748836351294,8.7516,2496.6,2495.7,3.23122703]
[1748836351295,2.81613662,2496.4,2495.7,3.23122703]
[1748836351615,3.56773662,2496.2,2495.7,0.8271]
[1748836351797,2.40380107,2496.1,2495.7,0.8271]
[1748836351995,5.9714241,2496.2,2495.7,3.23122964]
[1748836352521,0.7516,2496.2,2495.8,2.40403276]
[1748836352700,0.7516,2496.2,2495.7,3.23116013]
[1748836352909,0.7516,2496.2,2495.7,3.90379824]
[1748836353944,8.0,2496.4,2496.0,2.40378793]
[1748836354226,0.381506,2496.3,2495.9,2.40391891]
[1748836354430,10.40346483,2496.4,2495.9,2.40391891]
[1748836354636,0.38150642,2496.3,2495.9,2.40391891]
[1748836354809,10.40346483,2496.4,2495.9,2.40391891]
[1748836355000,0.38154766,2496.3,2495.8,2.40400574]
[1748836355199,10.40346483,2496.4,2495.8,2.40400574]
[1748836355439,0.3815521,2496.3,2495.8,2.40400574]
[1748836355596,10.40346483,2496.4,2495.8,3.44879019]
[1748836355797,10.40346483,2496.4,2495.5,0.8167]
[1748836355798,3.58843662,2496.1,2495.5,0.8167]
[1748836356028,2.40368324,2496.2,2495.7,2.40411531]
[1748836356235,10.40348009,2496.4,2495.9,0.8167]
[1748836356407,0.38160393,2496.3,2495.9,0.8167]
[1748836356610,10.40348009,2496.4,2495.9,3.22062231]
[1748836356821,0.38162325,2496.3,2495.9,0.8167]
[1748836357142,10.40348009,2496.4,2495.9,0.8167]
[1748836357439,0.38165827,2496.3,2495.9,0.8167]
[1748836357604,10.40348009,2496.4,2495.9,3.22062648]
[1748836357938,0.38167375,2496.3,2495.9,3.22062648]
[1748836358236,10.40348009,2496.4,2495.9,3.22062648]
[1748836358424,0.38167259,2496.3,2495.9,3.22062648]
[1748836358626,0.55,2496.4,2495.9,0.8167]
[1748836358947,0.38169405,2496.3,2495.9,0.8167]
[1748836359106,2.95353491,2496.4,2495.9,3.2206184]
[1748836359326,0.38169699,2496.3,2495.9,3.2206184]
[1748836359523,2.95353491,2496.4,2495.9,3.2206184]
[1748836359751,0.38169971,2496.3,2495.9,3.2206184]
[1748836359966,5.99182044,2496.5,2496.0,2.4038271]
[1748836360261,2.78521454,2496.4,2495.9,3.22059672]
[1748836360421,2.40348641,2496.4,2495.9,3.22059672]
[1748836361954,0.7723,2496.5,2495.7,0.8273]
[1748836362154,5.60130692,2496.4,2495.8,2.4039551]
[1748836362324,5.2195976,2496.4,2495.8,2.4039551]
[1748836363320,2.81613662,2496.4,2495.7,0.8273]
[1748836363547,2.4037209,2496.2,2495.7,0.8273]
[1748836363749,2.4037209,2496.2,2495.7,3.23143311]
[1748836364258,5.21985752,2496.2,2495.7,0.8273]
[1748836364961,2.81613662,2496.2,2495.7,3.23143459]
[1748836366469,2.81613662,2496.2,2495.8,2.40402792]
[1748836366849,2.40360345,2496.3,2495.8,2.40402792]
[1748836367063,0.38183309,2496.2,2495.8,2.40402792]
[1748836367245,2.40360345,2496.3,2495.8,2.40402792]
[1748836367447,0.38183507,2496.2,2495.8,2.40402792]
[1748836367670,2.40360345,2496.3,2495.8,2.40402792]
[1748836367854,0.38186456,2496.2,2495.8,2.40402792]
[1748836368186,2.40360345,2496.3,2495.8,2.40402792]
[1748836368346,0.38186076,2496.2,2495.8,2.40402792]
[1748836368547,2.40360345,2496.3,2495.8,2.40402792]
[1748836368743,0.38188697,2496.2,2495.8,2.40402792]
[1748836368941,2.40360345,2496.3,2495.8,2.40402792]
[1748836369184,2.78553782,2496.2,2495.7,3.23140478]
[1748836369386,2.40360488,2496.3,2495.8,2.40403599]
[1748836369586,0.38188077,2496.2,2495.8,2.40403599]
[1748836369786,2.40360488,2496.3,2495.8,2.40403599]
[1748836369962,0.3818969,2496.2,2495.8,2.40403599]
[1748836370158,2.40360488,2496.3,2495.8,2.40403599]
[1748836370496,0.38187302,2496.2,2495.9,2.4039325]
[1748836370683,8.7723,2496.5,2496.0,2.40379834]
[1748836370855,0.3819019,2496.4,2496.0,2.40379834]
[1748836371048,0.3819019,2496.3,2495.9,2.40389967]
[1748836371252,0.3819002,2496.2,2495.9,2.40389967]
[1748836371475,5.21960447,2496.4,2495.9,2.40389967]
[1748836371790,0.38191615,2496.3,2495.9,2.40389967]
[1748836371987,0.38191615,2496.2,2495.9,2.40389967]
[1748836372281,5.21960447,2496.4,2495.9,2.40389967]
[1748836372481,0.38191873,2496.3,2495.9,2.40389967]
[1748836372682,5.21960447,2496.4,2495.9,2.40389967]
[1748836372882,0.38193534,2496.3,2495.9,2.40389967]
[1748836373053,5.21960447,2496.4,2495.9,2.40389967]
[1748836373389,0.38193501,2496.3,2496.0,2.40377985]
[1748836373682,2.81613662,2496.4,2496.0,2.40377985]
[1748836373887,0.3819602,2496.3,2496.0,2.40377985]
[1748836374055,2.81613662,2496.4,2496.0,2.40377985]
[1748836374269,0.38195607,2496.3,2495.9,2.40389278]
[1748836374474,2.81613662,2496.4,2495.9,3.07651266]
[1748836374675,0.38196946,2496.3,2495.9,3.07651266]
[1748836374875,2.81613662,2496.4,2495.9,3.07651266]
[1748836375196,0.38201436,2496.3,2495.9,3.07651266]
[1748836375527,0.38201436,2496.2,2495.9,3.07651266]
[1748836375699,5.21962065,2496.4,2495.9,3.07651266]
[1748836376007,0.38205359,2496.3,2495.9,2.40389278]
[1748836376174,0.38205109,2496.2,2495.8,2.40399111]
[1748836376375,5.21962065,2496.4,2495.8,2.40399111]
[1748836376603,0.38206324,2496.3,2495.8,2.40399111]
[1748836376802,0.38211278,2496.2,2495.9,2.40393393]
[1748836377010,5.21962065,2496.4,2495.9,2.40393393]
[1748836377308,0.38211394,2496.3,2495.9,2.40393393]
[1748836377490,0.38211394,2496.2,2495.9,2.40393393]
[1748836377689,5.21962065,2496.4,2495.8,2.40398948]
[1748836377904,0.38217927,2496.3,2495.8,2.40398948]
[1748836378074,0.38217927,2496.2,2495.8,3.49042977]
[1748836378278,5.21962065,2496.4,2495.8,3.49042977]
[1748836378478,0.38213176,2496.3,2495.8,3.49042977]
[1748836378706,0.38213176,2496.2,2495.8,3.49042977]
[1748836378907,5.21962065,2496.4,2495.8,3.49042977]
[1748836379204,0.38219894,2496.3,2495.8,3.49042977]
[1748836379409,0.38220003,2496.2,2495.8,3.49042977]
[1748836379613,5.21962065,2496.4,2495.8,3.49042977]
[1748836379911,0.38220153,2496.3,2495.8,3.49042977]
[1748836380098,0.38220153,2496.2,2495.8,3.49042977]